Cogmind - Beta 15 *** ADVENTURER MODE // 2025.06.09 @ 14:43:27 Player: triibiis Result: Destroyed by Triborg with Siege Cannon Performance ------------- Evolutions (0) 0 Regions Visited (3) 600 Robots Destroyed (40) 200 Value Destroyed (942) 942 Prototype IDs (0) 0 Alien Tech Used (0) 0 Bonus (-96) -96 TOTAL SCORE: 1646 Bonus ------- Friendly Fire -96 Cogmind --------- Core Integrity 0/250 Matter 300/300 Energy 125/125 System Corruption 0% Temperature Cool (55) Movement Core (400) Ox7 Location -7/Scraptown Parts ------- > --- POWER (1) -------- Light Ion Engine > --- PROPULSION (2) --- (None) > --- UTILITY (2) ------ Large Storage Unit > --- WEAPON (2) ------- (None) > --- INVENTORY (15) --- Light Ion Engine Visual Processing Unit Core Shielding Light Cannon Light Cannon Light Cannon Light Cannon Grenade Launcher Mini Grenade Launcher Mining Laser Peak State ------------ > --- POWER ------------ Subdweller Power Source > --- PROPULSION ------- Light Treads Light Treads > --- UTILITY ---------- Large Storage Unit Core Shielding > --- WEAPON ----------- Light Cannon Light Cannon > --- INVENTORY -------- Light Ion Engine Light Ion Engine Visual Processing Unit Core Shielding Light Cannon Light Cannon Light Cannon Light Cannon Grenade Launcher Mini Grenade Launcher Mining Laser [Rating: 9] Favorites ----------- Power Light Ion Engine Engine Light Ion Engine Propulsion Light Treads Treads Light Treads Utility Core Shielding Storage Large Storage Unit Protection Core Shielding Weapon Light Cannon Energy Gun EM Pulse Gun Ballistic Gun Assault Rifle Ballistic Cannon Light Cannon Build | -11 -10 -10 -7 ------- Run | Yrd Mat Sub Scr Slots Evolved . | . . . . Power . | . . . . Propulsion . | . . . . Utility . | . . . . Weapon . | . . . . Parts Attached 14 | 7 5 2 . Power 4 | 1 1 2 . Engine 4 | 1 1 2 . Core . | . . . . Reactor . | . . . . Propulsion 2 | 2 . . . Treads 2 | 2 . . . Leg . | . . . . Wheel . | . . . . Hover . | . . . . Flight . | . . . . Utility 3 | 1 2 . . Device . | . . . . Storage 2 | 1 1 . . Processor . | . . . . Hackware . | . . . . Protection 1 | . 1 . . Artifact . | . . . . Weapon 5 | 3 2 . . Energy Gun 2 | 2 . . . Energy Cannon . | . . . . Ballistic Gun 1 | 1 . . . Ballistic Cannon 2 | . 2 . . Launcher . | . . . . Special Weapon . | . . . . Impact Weapon . | . . . . Slashing Weapon . | . . . . Piercing Weapon . | . . . . Special Melee Weapon . | . . . . Unidentified Prototypes . | . . . . Parts Lost 6 | . . 3 3 Power 1 | . . 1 . Propulsion 2 | . . 2 . Utility 1 | . . . 1 Weapon 2 | . . . 2 Highest Loss Streak 3 | . . 2 3 To Critical Strikes . | . . . . Average Backups 9 | 1 9 10 10 Power 1 | . 1 1 1 Propulsion . | . . . . Utility 1 | . 1 2 2 Weapon 6 | . 5 7 7 Tool/Special . | . . . . Unused Backups 9 | . . . 9 Power . | . . . . Propulsion . | . . . . Utility 2 | . . . 2 Weapon 7 | . . . 7 Tool/Special . | . . . . Average Slot Usage (%) 86 | . 99 79 71 Engine 13 | . 14 13 14 Treads 15 | . 28 8 . Storage 14 | . 14 14 14 Protection 13 | . 13 14 14 Ballistic Cannon 27 | . 27 28 28 Peak Build Rating 9 | 6 8 9 6 Average Rating 7 | 5 7 6 5 On Entrance 5 | . 6 8 6 Naked Turns . | . . . . Heaviest Build 32 | 12 32 32 30 Greatest Support 40 | 40 40 40 3 Greatest Overweight (x) 9 | 1 . 9 9 Average Overweight (x) 1 | . . 3 9 Largest Inventory Capacity 15 | 8 15 15 15 Average Capacity 14 | 7 14 15 15 Most Carried 11 | 2 11 11 10 Average Carried 9 | 1 9 10 10 Final Capacity 15 | 8 15 15 15 Final Carried 11 | 2 11 10 10 Class Distribution -------------------- 100% | Mutant Dominant Class ---------------- Mutant | -10/Materials Mutant | -10/Subcaves Mutant | -7/Scraptown Resources | -11 -10 -10 -7 ----------- Run | Yrd Mat Sub Scr Matter Collected 969 | 270 435 253 11 Remotely . | . . . . Salvage Created 733 | . 569 164 . Parts 64 | . 53 11 . Haulers Intercepted . | . . . . Recyclers Shooed . | . . . . Parts Field Recycled . | . . . . Retrieved Matter . | . . . . Parts Self-Destructed 17 | . . 17 . Prevented . | . . . . Kills | -11 -10 -10 -7 ------- Run | Yrd Mat Sub Scr Combat Hostiles Destroyed 35 | . 26 9 . Cannons 35 | . 26 9 . Classes Destroyed 6 | . 3 3 . Turret 2 | . . 2 . Watcher 3 | . 3 . . Swarmer 17 | . 12 5 . Grunt 14 | . 14 . . Sentry 1 | . . 1 . Subdweller 3 | . . 3 . Best Kill Streak 8 | . 8 4 . Combat Bots Only 8 | . 8 3 . Max Kills in Single Turn 1 | . 1 1 . Gunslinging . | . . . . Exploded . | . . . . Melee . | . . . . Uniques/NPCs Destroyed . | . . . . Combat | -11 -10 -10 -7 -------- Run | Yrd Mat Sub Scr Hostile Shots Fired 161 | . 77 75 9 Missed 48 | . 26 22 . Hits 113 | . 51 53 9 Projectile 113 | . 51 53 9 Critical Strikes 2 | . . 2 . Actively Blocked 1 | . . 1 . Damage Taken 1149 | . 417 525 207 Core 293 | . 58 112 123 Absorbed by Shields . | . . . . Redirected to Shielding 60 | . 9 23 28 Ignored by Resistances 337 | . 130 152 55 Regen/Repaired (Parts) 135 | . 135 . . Core Remaining (%) 100 | 100 . . . Volleys Fired 80 | . 47 31 2 Largest 2 | . 2 2 2 Hottest 60 | . 60 60 60 Shots Fired 159 | . 94 62 3 Gun . | . . . . Cannon 159 | . 94 62 3 Launcher . | . . . . Special . | . . . . Kinetic 159 | . 94 62 3 Thermal . | . . . . Explosive . | . . . . Electromagnetic . | . . . . Robot Hit Streak 14 | . 9 14 13 Robot Miss Streak 3 | . 3 2 . Penetration Max . | . . . . Secondary Targets . | . . . . Shots Hit Robots 106 | . 53 50 3 Core Hits 45 | . 27 16 2 Critical Kills . | . . . . Critical Parts Destroyed . | . . . . Critical Strikes 5 | . 4 1 . Blast 5 | . 4 1 . Melee Attacks . | . . . . Impact . | . . . . Slashing . | . . . . Piercing . | . . . . Sneak Attacks . | . . . . Combat Hostiles . | . . . . Follow-up Attacks . | . . . . Damage Inflicted 1738 | . 986 700 52 Guns . | . . . . Cannons 1738 | . 986 700 52 Explosions . | . . . . Melee . | . . . . Ramming . | . . . . Kinetic 1738 | . 986 700 52 Thermal . | . . . . Explosive . | . . . . Electromagnetic . | . . . . Impact . | . . . . Slashing . | . . . . Piercing . | . . . . Highest Corruption . | . . . . Average Corruption . | . . . . Corruption Purged . | . . . . Corruption Blocked . | . . . . Overload Shots . | . . . . Overflow Damage 45 | . 33 12 . Projectiles 45 | . 33 12 . Explosions . | . . . . Melee . | . . . . Knockbacks 16 | . 9 7 . Impact . | . . . . Kinetic 15 | . 8 7 . Secondary 1 | . 1 . . Self-Inflicted Damage . | . . . . Shots . | . . . . Rammed . | . . . . Targets Rammed . | . . . . Kicked . | . . . . Crushed . | . . . . Highest Temperature 99 | . 99 . 31 Average Temperature 34 | . 35 . 22 Received Heat Transfer 471 | . 201 210 60 Siege Activations . | . . . . Martial Activations . | . . . . Shielding Activations . | . . . . Robots Disrupted . | . . . . Combat Hostiles . | . . . . Robots Corrupted . | . . . . Combat Hostiles . | . . . . Parts Fried . | . . . . Impact Corruptions . | . . . . Robots Melted . | . . . . Combat Hostiles . | . . . . Parts Melted . | . . . . Heat Transferred . | . . . . Parts Sabotaged . | . . . . Parts Stolen . | . . . . Parts Stripped . | . . . . Power Chain Reactions . | . . . . Alert | -11 -10 -10 -7 ------- Run | Yrd Mat Sub Scr Maximum Alert Level 1 | . 1 . . Low Security (%) 95 | 100 95 . . Level 1 4 | . 4 . . Level 2 . | . . . . Level 3 . | . . . . Level 4 . | . . . . Level 5 . | . . . . High Security . | . . . . Max Security . | . . . . Peak Influence 244 | . 244 . . Initial . | . . . . Average 36 | . 37 . . Influence Increases 872 | . 657 215 . Destroy 0b10 Robot/C 680 | . 520 160 . Destroy 0b10 Robot/NC 15 | . 15 . . Destroy Leader 106 | . 96 10 . Successful Hack 14 | . 14 . . Disable Machine 9 | . 9 . . Destroy Structure 3 | . 3 . . Lose Combat Pursuer 45 | . . 45 . Influence Decreases 872 | . 657 215 . Time Decay 862 | . 657 205 . Lost Part 10 | . . 10 . Squads Dispatched 4 | . 4 . . Investigation 4 | . 4 . . Extermination . | . . . . Reinforcement . | . . . . Assault . | . . . . Garrison . | . . . . Intercept . | . . . . Searches Triggered . | . . . . Construction Impeded . | . . . . Haulers Reinforced . | . . . . Active Scanning Responses . | . . . . Cargo Convoy Interrupts . | . . . . Stealth | -11 -10 -10 -7 --------- Run | Yrd Mat Sub Scr Distress Signals . | . . . . Communications Jammed . | . . . . Distress Signals . | . . . . Times Spotted 47 | . 31 11 5 Peak Tracking Total 8 | . 8 4 5 Tactical Retreats 1 | . . 1 . Traps | -11 -10 -10 -7 ------- Run | Yrd Mat Sub Scr Traps Triggered . | . . . . Indirectly . | . . . . Trap Hack Attempts . | . . . . Triggered . | . . . . Disarmed . | . . . . Reprogrammed . | . . . . Reused . | . . . . Traps Extracted . | . . . . Installed . | . . . . Triggered . | . . . . Machines | -11 -10 -10 -7 ---------- Run | Yrd Mat Sub Scr Machines Disabled 2 | . 1 1 . Max in Single Turn 1 | . 1 1 . Machines Repaired . | . . . . Machines Dismantled . | . . . . Machines Sabotaged . | . . . . Overloaded Fab Kills . | . . . . Hacking | -11 -10 -10 -7 --------- Run | Yrd Mat Sub Scr Machines Accessed 9 | . 9 . . Terminals 8 | . 8 . . Fabricators . | . . . . Repair Stations 1 | . 1 . . Recycling Units . | . . . . Scanalyzers . | . . . . Garrison Access . | . . . . Total Hacks 31 | . 31 . . Successful 10 | . 10 . . Failed 21 | . 21 . . Catastrophic 9 | . 9 . . Database Lockouts . | . . . . Manual 24 | . 24 . . Terminals 26 | . 26 . . Fabricators . | . . . . Repair Stations 5 | . 5 . . Recycling Units . | . . . . Scanalyzers . | . . . . Garrison Access . | . . . . Terminal Hacks 6 | . 6 . . Level Access Points 1 | . 1 . . Branch Access Points 1 | . 1 . . Emergency Access Points 1 | . 1 . . Terminal Index 1 | . 1 . . Locate Traps 1 | . 1 . . Zone Layout 1 | . 1 . . Fabricator Hacks . | . . . . Repair Station Hacks 4 | . 4 . . Scan Component 2 | . 2 . . Repair 2 | . 2 . . Recycling Unit Hacks . | . . . . Scanalyzer . | . . . . Garrison Access Hacks . | . . . . Unauthorized Hacks . | . . . . Terminals . | . . . . Fabricators . | . . . . Repair Stations . | . . . . Recycling Units . | . . . . Scanalyzers . | . . . . Garrison Access . | . . . . Data Cores Recovered . | . . . . Used . | . . . . Hacking Detections 9 | . 9 . . Full Trace Events 8 | . 8 . . Feedback Events . | . . . . Feedback Blocked . | . . . . Robot Schematics Acquired . | . . . . Robots Built . | . . . . Authchips . | . . . . Time . | . . . . Total Robot Build Rating . | . . . . Part Schematics Acquired . | . . . . Parts Built . | . . . . Authchips . | . . . . Time . | . . . . Total Part Build Rating . | . . . . Parts Repaired 2 | . 2 . . Time 52 | . 52 . . Parts Recycled . | . . . . Recycled Matter . | . . . . Retrieved Matter . | . . . . Retrieved Components . | . . . . Parts Scanalyzed . | . . . . Part Schematics Acquired . | . . . . Parts Damaged . | . . . . Bothacking | -11 -10 -10 -7 ------------ Run | Yrd Mat Sub Scr Used RIF Installer . | . . . . Robots Hacked . | . . . . Non-combat . | . . . . Combat . | . . . . Robot Hacks Applied . | . . . . Relay Couplers Released . | . . . . Fabnet Peak Effective % . | . . . . Robots Rewired . | . . . . Allies Hacked . | . . . . Hacks Repelled . | . . . . Allies | -11 -10 -10 -7 -------- Run | Yrd Mat Sub Scr Total Allies . | . . . . Largest Group . | . . . . Highest-Rated Group . | . . . . Highest-Rated Ally . | . . . . Total Orders . | . . . . Ally Attacks . | . . . . Total Damage . | . . . . Kills . | . . . . Allies Corrupted . | . . . . Allies Melted . | . . . . Intel | -11 -10 -10 -7 ------- Run | Yrd Mat Sub Scr Active Infowar (turns) . | . . . . Robot Analysis Total . | . . . . Derelict Logs Recovered . | . . . . Drone Launches . | . . . . Drone Recoveries . | . . . . Exploration | -11 -10 -10 -7 ------------- Run | Yrd Mat Sub Scr Turns Passed 5594 | 119 2473 1888 1114 Spaces Moved 2217 | 73 1340 582 222 Core 394 | 10 . 162 222 Treads 1823 | 63 1340 420 . Legs . | . . . . Wheels . | . . . . Hover . | . . . . Flight . | . . . . Fastest Speed 50 | 50 160 160 500 Average Speed 232 | 146 160 308 500 Slowest Speed 500 | 160 160 500 500 Overloaded Moves . | . . . . Propulsion Burnouts . | . . . . Robots Hopped . | . . . . Potential Cave-ins . | . . . . Cave-ins Triggered . | . . . . Exploration Rate (%) 42 | 4 100 37 30 Regions Visited 3 Branch Regions 2 Pre-discovered Areas . | . . . . Known Exits Taken . | . . . . Unknown Exits Taken 3 | 1 1 1 . Scrap Searched 1 | . . . 1 Spaces Dug . | . . . . Terrain Destroyed . | . . . . Melee . | . . . . Projectile . | . . . . AOE . | . . . . Terrain Rammed . | . . . . Walls Destroyed . | . . . . Machines Disabled . | . . . . Actions | -11 -10 -10 -7 --------- Run | Yrd Mat Sub Scr Total 2495 | 82 1574 615 224 Wait 168 | . 168 . . Move 2214 | 72 1339 581 222 Hop . | . . . . Pick Up 11 | 2 9 . . Fast Attach 12 | 6 5 1 . Attach 2 | 1 . 1 . Detach 1 | 1 . . . Swap 2 | . 2 . . Drop 5 | . 4 1 . Fire 80 | . 47 31 2 Melee . | . . . . Ram . | . . . . Kick . | . . . . Crush . | . . . . Escape Stasis . | . . . . Rewire . | . . . . Trap . | . . . . Miscellaneous . | . . . . Route ------- -11/Scrapyard -10/Materials (discovered 6 exits: *Mat x3 / *Min x2 / [*Sub]) -10/Subcaves (discovered 2 exits: [*Rec] / [*Scr]) -7/Scraptown History --------- Turn | Location | Event 51 | -11/Scrapyard | Discovered new exit (range 15) 120 | -11/Scrapyard | Entered Materials 310 | -10/Materials | Build established: Mutant 564 | -10/Materials | Discovered new exit (range 7) 631 | -10/Materials | Discovered new exit (range 8) 1007 | -10/Materials | Destroyed 8 combat bots 1076 | -10/Materials | Discovered new exit (range 10) 1356 | -10/Materials | Discovered new exit (range 5) 1687 | -10/Materials | Identified exit to Mines 1687 | -10/Materials | Identified exit to Materials 2166 | -10/Materials | Repaired Lgt. Cannon 2205 | -10/Materials | Repaired Lgt. Cannon 2593 | -10/Materials | Entered Subcaves 2594 | -10/Subcaves | Approached by a straggling Scientist 3015 | -10/Subcaves | Discovered new exit (range 14) 3026 | -10/Subcaves | Core integrity fell below 50% 4456 | -10/Subcaves | Scientist uncovered a shortcut to Scraptown 4481 | -10/Subcaves | Entered Scraptown 5466 | -7/Scraptown | Visited The Evicted 5592 | -7/Scraptown | Attacked by Scraptown defenders 5594 | -7/Scraptown | Core integrity fell below 20% 5595 | -7/Scraptown | Destroyed by Triborg with Siege Cannon Last Messages --------------- maybe we all should. ... Wait a minute, what if Leadscrap is an MC plant? And why is talking to a stranger causing me to second guess myself... My cycle is ruined. MR-3Q7(g): "Z - Zion is a trash heap prove me wrong!" MR-3Q7(g): "A single letter can hold a lot of meaning if you really mean it." LOCAL NARROWCAST: The Evicted. Triborg examines you suspiciously. ANNOUNCEMENT: Intruder alert! Defend Scraptown! Triborg activates siege mode. Penetrated by Bolt. Penetrated by Siege Slug. Knocked back. Lgt. Cannon destroyed. Penetrated by Siege Slug. Core Shielding destroyed. Map ----- +----------------------------------------------------+ | #??# """"" ##" " "#????????????????????? | | #??# """" ##" " ""#????????????????????? | | #??# ##" " "#????????????????????? | | #??? ##"" ""#????????????????????? | | #????? ##" " " " "#????????????????????? | | #??????? ?#"" ""#????????????????????? | | ########## ########### ####???????????????????? | | #???????????????????? | | #???????????????????? | | #???????????????????? | | #???????????????????? | | #???????????????????? | | ############ #### #???????????????????? | | #????????? ?# #???????????????????? | | #??????? "## #???????????????????? | | #??????##### "## #???????????????????? | | #??????????#" "## #???????????????????? | | #??????????#" "## #???????????????????? | | #??????????# "## % ###?????????????????? | | #??????????? "?# ""#"#???????????????? | | #??????????? "?# j""""#???????????????? | | #????????????""?# ""###???????????????? | | ?????????????##?# ###?????????????????? | | ????????????????# % #########???????????? | | ????????????????# ????????? | | ???????????????????# j @% ????????? | | ???????????????????# "???????????????? | | ???????????????????# "???????????????? | | ???????????????????# TT "???????????????? | | ???????????????? TT "???????????????? | | ???????????? "???????????????? | | ??????????? "???????????????? | | ???????????? x "???????????????? | | ???????????? "???????????????? | | ???????????? #"???????????????? | | ????????????? #????????????????? | | ????????????? #????????????????? | | ??????????????########h### ####????????????????? | | ????????????????????? ??? #???????????????????? | | ????????????????????? ??? #???????????????????? | | ????????????????????? ??? #???????????????????? | | ????????????????????? ???? #???????????????????? | | ?????????????????????????? ?????????????????????? | | ?????????????????????????????????????????????????? | | ?????????????????????????????????????????????????? | | ?????????????????????????????????????????????????? | | ?????????????????????????????????????????????????? | | ?????????????????????????????????????????????????? | | ?????????????????????????????????????????????????? | | ?????????????????????????????????????????????????? | +----------------------------------------------------+ Best States ------------- Heat Dissipation 25 Energy Generation 15 Energy Capacity 250 Matter Stores 300 Matter Capacity 300 Sight Range 16 Terrain Scan Density 10 Resistance: KI 20 Resistance: TH 20 Resistance: EX 20 Resistance: EM 20 Resistance: I 20 Resistance: S 20 Resistance: P 20 Core Shielding 20 Evasion (%) 40 Recoil Reduction 2 Offensive Hacking 10 Item Schematics ----------------- None Robot Schematics ------------------ None Fabricated ------------ Nothing Repaired ---------- Lgt. Cannon | 42% | -10/Materials Lgt. Cannon | 45% | -10/Materials Alien Tech Used ----------------- None Achievements -------------- None Challenges ------------ None Game ------ Seed BraceThermoelectricNanosword Manual? 0 Play Time 00:20:35 Cumulative 12.5 hours Start 2025.06.09 @ 14:10:56 End 2025.06.09 @ 14:43:27 Sessions 1 Manual Loads 0 Difficulty Adventurer Special Mode None Game No. 35 Rogue 0 Adventurer 35 Explorer 0 Win Type - Total 0 Types 0/0/0/0/0/0/0/0/0/0 Lore% 15 Gallery% 14 Achievement% 17 Wizard Run 0 Options --------- Layout 1 ASCII 0 Keyboard 0 Movement Arrows Keybinds 0 Fullscreen 1 Font 36/Smallcaps Map View 50x43 Zoom Use 0% Tactical HUD 0 Map Filters NONE Filters NONE Steam 1 RUN: f7f94eaf-1ed3-4a69-8ac2-43060212b2eb